bitfinex-derivatives/quotes_ETHF0:USTF0_20250323
["timestamp","ask_amount","ask_price","bid_price","bid_amount"]
[1742753772826,0.0075305,1994.1,1994.0,2.40498]
[1742753774918,0.0075305,1994.1,1994.0,5.61278]
[1742753775118,0.0075305,1994.1,1994.0,2.40498]
[1742753777321,0.0075305,1994.1,1994.0,5.61278]
[1742753780724,0.0075305,1994.1,1994.0,10.57078]
[1742753780926,0.0075305,1994.1,1994.0,13.07078]
[1742753781126,0.6688,1994.7,1994.6,1.00288]
[1742753781325,5.3265,1994.9,1994.6,3.239]
[1742753781535,1.4148,1994.8,1994.7,1.00282]
[1742753781732,2.41758,1994.8,1994.7,1.2962]
[1742753782035,1.4148,1994.8,1994.7,1.2962]
[1742753782534,1.4148,1994.8,1994.7,2.29903]
[1742753785334,1.4148,1994.8,1994.7,3.00483]
[1742753786753,4.21047,1995.1,1994.9,1.00271]
[1742753786938,1.4163,1995.0,1994.9,4.24071]
[1742753787246,2.0959,1995.0,1994.9,3.238]
[1742753787632,3.09858,1995.0,1994.9,3.238]
[1742753788147,2.0959,1995.0,1994.9,3.238]
[1742753788649,3.09858,1995.0,1994.9,3.238]
[1742753789546,2.0959,1995.0,1994.9,3.238]
[1742753789943,2.0959,1995.0,1994.9,4.24073]
[1742753790144,2.0959,1995.0,1994.9,3.238]
[1742753790847,3.09858,1995.0,1994.9,3.238]
[1742753792741,1.00278,1994.9,1994.6,4.2181805]
[1742753792942,3.02798,1994.9,1994.7,4.23982]
[1742753793448,1.3754,1994.8,1994.7,4.23982]
[1742753795447,2.37818,1994.8,1994.7,3.237]
[1742753795640,1.3754,1994.8,1994.7,3.237]
[1742753796445,1.3754,1994.8,1994.7,4.23983]
[1742753796646,1.3754,1994.8,1994.7,5.54123]
[1742753797447,1.3754,1994.8,1994.7,6.86023]
[1742753798348,1.3754,1994.8,1994.7,5.8574]
[1742753798555,1.3754,1994.8,1994.7,6.86023]
[1742753798756,0.6498,1994.9,1994.8,1.00278]
[1742753798945,0.6498,1994.9,1994.8,2.33548]
[1742753800241,0.6796,1995.0,1994.8,1.3327]
[1742753800464,0.6796,1995.0,1994.9,7.7775]
[1742753800758,0.6796,1995.0,1994.9,8.78023]
[1742753801651,2.50548,1996.0,1995.0,2.50667]
[1742753801855,1.3293,1995.5,1995.2,3.2078]
[1742753802047,1.3293,1995.5,1995.3,6.24231]
[1742753802250,2.33173,1995.5,1995.4,3.237]
[1742753804358,1.00248,1995.4,1995.3,4.5603]
[1742753804558,2.33178,1995.4,1995.3,4.5603]
[1742753806762,2.97428,1995.4,1995.3,4.5603]
[1742753807061,6.18208,1995.4,1995.3,4.5603]
[1742753810862,7.68587,1995.4,1995.1,3.236]
[1742753811164,1.00258,1995.2,1995.1,3.236]
[1742753811662,1.70288,1995.2,1995.1,3.236]
[1742753813064,1.00263,1995.1,1995.0,1.3082]
[1742753813367,3.06943,1995.1,1995.0,1.3082]
[1742753815569,3.06943,1995.1,1995.0,2.6478]
[1742753816858,3.06943,1995.1,1995.0,1.973]
[1742753821967,3.2078,1995.2,1995.0,1.973]
[1742753822165,4.21038,1995.2,1995.1,1.4071]
[1742753824074,1.00258,1995.2,1995.1,1.4071]
[1742753828564,0.7043,1995.2,1994.8,3.2078]
[1742753828775,4.21048,1995.0,1994.9,1.3831]
[1742753829177,5.55698,1995.0,1994.9,1.3831]
[1742753831069,2.34918,1995.0,1994.9,1.3831]
[1742753848481,5.55698,1995.0,1994.9,1.3831]
[1742753860398,2.34918,1995.0,1994.9,1.3831]
[1742753860587,5.55698,1995.0,1994.9,1.3831]
[1742753865391,4.8034305,1995.1,1995.0,1.00268]
[1742753865698,3.2078,1995.2,1995.1,1.00263]
[1742753865898,3.2078,1995.2,1995.1,4.23663]
[1742753866097,4.21038,1995.2,1995.1,3.234]
[1742753866304,4.21038,1995.2,1995.1,4.5859]
[1742753870007,4.87498,1995.2,1995.1,4.5859]
[1742753870504,6.16168,1995.2,1995.1,4.5859]
[1742753871697,6.16168,1995.2,1995.1,1.3519]
[1742753874803,7.22279548,1995.2,1995.1,1.3519]
[1742753875408,6.16168,1995.2,1995.1,1.3519]
[1742753877903,1.00273,1994.9,1994.8,0.6669]
[1742753878097,4.21053,1994.9,1994.8,0.6669]
[1742753878297,1.00278,1994.8,1994.7,0.6897]
[1742753878497,1.68068,1994.8,1994.7,0.6897]
[1742753878698,1.00283,1994.7,1994.6,0.0075305]
[1742753879010,4.21063,1994.7,1994.6,0.0075305]
[1742753879208,5.52933,1994.7,1994.6,0.0075305]
[1742753879510,5.52933,1994.7,1994.6,1.3184305]
[1742753879709,5.52933,1994.7,1994.6,0.0075305]
[1742753880016,1.00303,1994.3,1994.2,4.5906]
[1742753880199,4.21083,1994.3,1994.2,4.5906]
[1742753880401,4.21083,1994.3,1994.2,1.3566]
[1742753880801,1.00326,1993.9,1993.6,8.1658]
[1742753881003,5.71552,1994.3,1993.9,1.4013]
[1742753881004,1.00318,1994.0,1993.9,1.4013]
[1742753881410,2.29698,1994.0,1993.9,1.4013]
[1742753883321,1.00318,1994.0,1993.9,1.4013]
[1742753889413,3.2078,1994.1,1993.9,1.4013]
[1742753889606,1.2938,1994.2,1994.0,0.7035]
[1742753889607,1.0031,1994.2,1994.0,0.7035]
[1742753889814,1.0031,1994.2,1994.1,5.293]
[1742753890118,1.00308,1994.2,1994.1,5.293]
[1742753890611,0.0075305,1994.4,1994.1,5.293]
[1742753890918,0.0075305,1994.4,1994.2,1.3198]
[1742753891107,1.0105505,1994.4,1994.3,3.234]
[1742753892414,0.0075305,1994.4,1994.3,4.5538]
[1742753893111,1.0105105,1994.4,1994.3,4.5538]
[1742753893410,1.0105105,1994.4,1994.3,5.55683]
[1742753893817,0.0075305,1994.4,1994.3,5.55683]
[1742753895214,0.0075305,1994.4,1994.3,4.5538]
[1742753895415,0.0075305,1994.4,1994.3,5.55683]
[1742753896608,1.0105105,1994.4,1994.3,4.5538]
[1742753897325,1.0105105,1994.4,1994.3,1.3198]
[1742753897510,2.3703105,1994.4,1994.3,4.5538]
[1742753900923,1.0105105,1994.4,1994.3,4.5538]
[1742753901423,1.0105105,1994.4,1994.3,1.3198]
[1742753901611,1.0105105,1994.4,1994.0,5.6615]
[1742753901612,1.00313,1994.1,1994.0,0.7035]
[1742753901921,4.21093,1994.1,1994.0,0.7035]
[1742753902515,3.2078,1994.1,1993.7,0.688]
[1742753902722,1.00326,1993.9,1993.8,3.234]
[1742753903020,1.00326,1993.9,1993.8,4.6133]
[1742753903411,5.54246,1993.9,1993.8,1.3793]
[1742753907623,2.33466,1993.9,1993.8,1.3793]
[1742753913623,4.87761,1994.0,1993.8,1.3793]
[1742753914541,1.00323,1993.9,1993.8,1.3793]
[1742753915431,4.87762,1994.0,1993.8,1.3793]
[1742753915627,4.87762,1994.0,1993.8,4.6133]
[1742753916122,1.00323,1993.9,1993.8,3.234]
[1742753916430,4.87762,1994.0,1993.8,3.234]
[1742753916829,1.00323,1993.9,1993.8,3.234]
[1742753918225,4.87762,1994.0,1993.8,3.234]
[1742753918433,1.66982,1994.0,1993.8,4.23728]
[1742753919027,1.2939,1994.1,1993.8,4.23728]
[1742753919222,4.2109,1994.2,1993.8,3.234]
[1742753919525,1.0031,1994.2,1994.0,1.00317]
[1742753919725,1.0031,1994.2,1994.1,4.6174]
[1742753920634,2.9788,1994.2,1994.1,4.6174]
[1742753922227,2.9788,1994.2,1994.1,5.62053]
[1742753922533,2.9788,1994.2,1994.1,4.6174]
[1742753923324,2.9788,1994.2,1994.1,5.62053]
[1742753923925,1.0031,1994.2,1994.1,5.62053]
[1742753924927,1.335,1994.3,1994.1,4.6174]
[1742753925133,4.5428,1994.3,1994.2,1.00308]
[1742753925334,1.6988505,1994.4,1994.3,1.00303]
[1742753925335,0.0075305,1994.4,1994.3,1.00303]
[1742753925523,0.0075305,1994.4,1994.3,4.23703]
[1742753928937,0.0075305,1994.4,1994.3,5.53583]
[1742753949766,0.0075305,1994.4,1994.3,10.49383]
[1742753949962,10.54886775,1994.6,1994.5,1.00293]
[1742753950161,10.54886775,1994.6,1994.5,7.44273]
[1742753950666,10.54886775,1994.6,1994.5,8.78183]
[1742753957173,10.54886775,1994.6,1994.5,5.57403]
[1742753957370,10.54886775,1994.6,1994.5,8.78183]
[1742753958677,11.55174775,1994.6,1994.5,1.3391]
[1742753958869,10.54886775,1994.6,1994.3,6.4388]
[1742753959068,1.00298,1994.4,1994.3,6.4388]
[1742753959272,1.00306,1994.3,1994.1,1.3731]
[1742753959582,0.7084,1994.2,1994.0,1.00316]
[1742753959774,1.9798,1994.1,1993.9,46.351]
[1742753959975,2.33503,1994.0,1993.7,2.37642]
[1742753960172,1.407,1993.9,1993.7,2.37642]
[1742753960478,1.407,1993.9,1993.8,3.231]
[1742753960680,1.407,1993.9,1993.8,4.5981]
[1742753960880,1.407,1993.9,1993.8,5.60139]
[1742753962179,1.407,1993.9,1993.8,6.98589]
[1742753967393,0.648,1994.1,1993.9,1.00322]
[1742753967591,1.3148,1994.0,1993.9,1.00322]
[1742753967890,1.3148,1994.0,1993.9,4.23522]
[1742753968890,1.3148,1994.0,1993.9,3.232]
[1742753969389,1.3148,1994.0,1993.9,4.23523]
[1742753970593,1.3148,1994.0,1993.9,3.232]
[1742753970792,2.31798,1994.0,1993.9,3.232]
[1742753970993,1.3148,1994.0,1993.9,3.232]
[1742753971995,2.31798,1994.0,1993.9,3.232]
[1742753972297,3.00628,1994.0,1993.9,3.232]
[1742753973195,2.0031,1994.0,1993.9,3.232]
[1742753974197,3.00628,1994.0,1993.9,3.232]
[1742753974588,2.0031,1994.0,1993.9,3.232]
[1742753974789,3.00628,1994.0,1993.9,3.232]
[1742753975198,2.0031,1994.0,1993.9,3.232]
[1742753975498,3.00628,1994.0,1993.9,3.232]
[1742753976092,2.0031,1994.0,1993.9,3.232]
[1742753976488,2.0031,1994.0,1993.9,4.23523]
[1742753976792,0.648,1994.1,1994.0,1.00318]
[1742753977394,1.9933,1994.1,1994.0,1.00318]
[1742753981100,1.9933,1994.1,1993.9,7.443]
[1742753982005,1.2825,1994.0,1993.9,7.443]
[1742753983104,0.648,1994.1,1994.0,1.00318]
[1742753983306,1.9305,1994.1,1994.0,1.00318]
[1742753984604,0.6622,1994.2,1994.0,1.00318]
[1742753984805,0.6622,1994.2,1994.1,3.231]
[1742753984998,1.9702,1994.2,1994.1,3.231]
[1742753986408,2.97328,1994.2,1994.1,3.231]
[1742753987708,2.97328,1994.2,1994.1,4.5852]
[1742754002815,7.68575,1994.2,1993.9,3.231]
[1742754003022,2.0161,1994.1,1993.9,4.6093]
[1742754003212,1.70533,1994.1,1994.0,1.3783]
[1742754004721,1.00334,1993.7,1993.6,0.0075305]
[1742754006017,1.00334,1993.7,1993.6,1.3887305]
[1742754009229,1.00334,1993.7,1993.6,0.0075305]
[1742754009533,4.21114,1993.7,1993.6,0.0075305]
[1742754010135,4.21114,1993.7,1993.2,0.6427]
[1742754010136,1.00354,1993.3,1993.2,0.6427]
[1742754010330,1.00354,1993.3,1993.2,3.231]
[1742754011435,1.00354,1993.3,1993.2,4.5527]
[1742754017639,5.54764,1993.3,1993.2,4.5527]
[1742754018538,5.54764,1993.3,1993.2,1.3217]
[1742754028439,2.33984,1993.3,1993.2,1.3217]
[1742754033235,1.00359,1993.2,1993.1,0.0075305]
[1742754033436,2.33219,1993.2,1993.1,0.0075305]
[1742754033644,5.53999,1993.2,1993.1,0.0075305]
[1742754034145,5.53999,1993.2,1992.7,1.0038]
[1742754034146,4.5364,1993.2,1992.7,1.0038]
[1742754034344,4.5364,1993.2,1992.7,2.35514]
[1742754034345,8.44212,1993.1,1992.7,2.35514]
[1742754034645,1.00374,1992.9,1992.8,1.3312]
[1742754035148,2.33234,1992.9,1992.8,1.3312]
[1742754037640,9.0148605,1993.2,1993.1,1.00364]
[1742754037949,1.00371,1993.0,1992.9,1.00371]
[1742754038148,3.2078,1993.2,1993.1,1.00364]
[1742754038355,4.21139,1993.2,1993.1,1.00364]
[1742754038547,4.2114,1993.2,1993.1,1.00364]
[1742754038941,4.2114,1993.2,1993.1,1.3959]
[1742754039142,5.4971,1993.2,1993.1,1.3959]
[1742754040841,6.1908,1993.2,1993.1,1.3959]
[1742754042249,5.4971,1993.2,1993.1,1.3959]
[1742754047258,2.2893,1993.2,1993.1,1.3959]
[1742754052667,5.4971,1993.2,1993.1,1.3959]
[1742754052849,6.195,1993.2,1993.1,1.3959]
[1742754061675,4.2114,1993.2,1993.1,1.3959]
[1742754061877,4.2114,1993.2,1993.1,2.0387]
[1742754062481,5.5627,1993.2,1993.1,2.0387]
[1742754066479,7.06813,1993.2,1992.7,0.0075305]
[1742754066672,1.00374,1992.9,1992.8,0.6645]
[1742754067279,2.32004,1992.9,1992.8,0.6645]
[1742754067475,1.00379,1992.8,1992.7,0.0075305]
[1742754067681,5.52789,1992.8,1992.7,0.0075305]
[1742754067884,6.23069,1992.8,1992.7,0.0075305]
[1742754069676,6.23069,1992.8,1992.7,1.2965305]
[1742754070379,5.52789,1992.8,1992.7,1.2965305]
[1742754078191,2.32009,1992.8,1992.7,1.2965305]
[1742754079090,5.52789,1992.8,1992.7,1.2965305]
[1742754079590,2.32009,1992.8,1992.7,1.2965305]
[1742754080697,5.52789,1992.8,1992.7,1.2965305]
[1742754080886,2.32009,1992.8,1992.7,1.2965305]
[1742754082797,5.52789,1992.8,1992.7,1.2965305]
[1742754091694,2.32009,1992.8,1992.7,1.2965305]
[1742754091894,5.52789,1992.8,1992.7,1.2965305]
[1742754097797,5.52789,1992.8,1992.6,0.6834]
[1742754097798,12.04322,1992.8,1991.7,3.2078]
[1742754098004,3.2078,1992.2,1992.0,2.053]
[1742754098205,4.21189,1992.2,1992.1,1.3774]
[1742754099194,4.21189,1992.2,1992.0,0.6831305]
[1742754099195,1.00414,1992.1,1992.0,0.6831305]
[1742754099398,1.00414,1992.1,1992.0,0.0075305]
[1742754099604,4.23414,1992.1,1992.0,0.0075305]
[1742754100204,3.2078,1992.2,1992.1,1.00414]
[1742754100509,0.6678305,1992.3,1992.1,0.6756]
[1742754100707,3.2078,1992.2,1992.1,2.3823]
[1742754101009,4.21189,1992.2,1992.1,2.3823]
[1742754102406,4.21189,1992.2,1992.1,1.3782]
[1742754103600,3.2078,1992.2,1992.1,2.38234]
[1742754103907,4.21189,1992.2,1992.1,2.38234]
[1742754104105,0.0075305,1992.3,1992.2,1.00409]
[1742754105314,3.2078,1992.8,1992.5,1.00394]
[1742754105508,1.00384,1992.7,1992.6,0.6892]
[1742754105707,1.00384,1992.7,1992.6,1.69309]
[1742754105902,1.00384,1992.7,1992.6,0.6892]
[1742754108809,1.00384,1992.7,1992.6,1.3554]
[1742754110414,3.2153305,1992.8,1992.6,1.3554]
[1742754110606,4.2191305,1992.8,1992.6,1.3554]
[1742754110808,4.2191305,1992.8,1992.6,2.35925]
[1742754111311,3.2153305,1992.8,1992.7,1.00384]
[1742754111511,0.0075305,1992.8,1992.7,1.00384]
[1742754113716,3.2078,1993.0,1992.9,1.00374]
[1742754113912,3.2078,1993.0,1992.9,4.23374]
[1742754116218,0.0075305,1993.1,1993.0,1.00369]
[1742754116419,0.0075305,1993.1,1993.0,1.67979]
[1742754116924,0.0075305,1993.1,1993.0,2.38899]
[1742754117729,0.0075305,1993.1,1993.0,2.7475]
[1742754117930,1.3986305,1993.1,1993.0,2.7475]
[1742754118136,1.3986305,1993.1,1993.0,3.75119]
[1742754118428,2.4022705,1993.1,1993.0,2.0714]
[1742754120227,2.4022705,1993.1,1993.0,0.7092]
[1742754121131,2.4022705,1993.1,1993.0,2.1118]
[1742754121334,1.00369,1993.0,1992.9,3.229]
[1742754121534,5.51439,1993.0,1992.9,3.229]
[1742754122034,5.51439,1993.0,1992.9,4.5681]
[1742754123738,5.51439,1993.0,1992.9,3.229]
[1742754123938,5.51439,1993.0,1992.7,3.00012]
[1742754123939,1.00375,1992.9,1992.7,3.00012]
[1742754124138,2.94605,1992.9,1992.8,4.5681]
[1742754124333,2.94605,1992.9,1992.8,1.3391]
[1742754125036,1.00379,1992.8,1992.7,3.229]
[1742754125339,5.58989,1992.8,1992.7,4.5703]
[1742754131844,5.58989,1992.8,1992.7,5.57414]
[1742754132241,3.2078,1993.0,1992.7,5.57414]
[1742754132447,4.5989,1993.0,1992.9,1.00374]
[1742754132649,4.5989,1993.0,1992.9,4.23274]
[1742754132849,3.2078,1993.0,1992.9,4.89924]
[1742754133240,0.0075305,1993.1,1993.0,1.00369]
[1742754133439,0.0075305,1993.1,1993.0,3.08149]
[1742754139342,0.0075305,1993.1,1993.0,6.28929]
[1742754139546,10.556089,1993.2,1993.1,1.00364]
[1742754139747,10.556089,1993.2,1993.1,5.63374]
[1742754141445,11.1899205,1993.9,1993.6,1.00339]
[1742754141446,3.2078,1993.7,1993.6,1.00339]
[1742754142246,1.3852,1993.7,1993.6,2.32319]
[1742754143154,1.3852,1993.7,1993.6,5.55119]
[1742754144856,1.3852,1993.7,1993.6,6.25499]
[1742754145058,4.86034,1993.9,1993.7,1.00329]
[1742754145247,1.3121,1993.8,1993.7,2.34759]
[1742754148656,2.31539,1993.8,1993.7,2.34764]
[1742754148958,2.31539,1993.8,1993.7,1.3443]
[1742754149649,2.31539,1993.8,1993.7,2.34764]
[1742754149849,1.3121,1993.8,1993.7,2.34764]
[1742754150561,2.31539,1993.8,1993.7,2.34764]
[1742754151060,2.31539,1993.8,1993.7,1.3443]
[1742754157863,2.31539,1993.8,1993.7,2.34764]
[1742754158065,1.3121,1993.8,1993.7,2.34764]
[1742754158267,1.3121,1993.8,1993.7,1.3443]
[1742754158470,2.31539,1993.8,1993.7,2.34764]
[1742754158664,1.3121,1993.8,1993.7,2.34764]
[1742754158864,2.31539,1993.8,1993.7,2.34764]
[1742754159869,2.31539,1993.8,1993.7,1.3443]
[1742754162367,1.3121,1993.8,1993.7,2.34764]
[1742754163269,2.31539,1993.8,1993.7,1.3443]
[1742754168870,2.31539,1993.8,1993.7,2.34764]
[1742754168871,1.3121,1993.8,1993.7,2.34764]
[1742754169172,2.31539,1993.8,1993.7,2.34764]
[1742754169975,1.3121,1993.8,1993.7,2.34764]
[1742754170868,2.31539,1993.8,1993.7,2.34764]
[1742754172175,1.3121,1993.8,1993.7,1.3443]
[1742754172367,1.3121,1993.8,1993.7,2.34764]
[1742754173875,2.31539,1993.8,1993.7,2.34764]
[1742754174273,1.3121,1993.8,1993.7,2.34764]
[1742754174479,2.31539,1993.8,1993.7,2.34764]
[1742754174677,2.31539,1993.8,1993.7,1.3443]
[1742754175077,1.3121,1993.8,1993.7,2.34764]
[1742754176574,2.31539,1993.8,1993.7,1.3443]
[1742754176779,1.3121,1993.8,1993.7,2.34764]
[1742754182686,2.31539,1993.8,1993.7,1.3443]
[1742754182990,1.3121,1993.8,1993.7,2.34764]
[1742754186392,2.31539,1993.8,1993.7,1.3443]
[1742754186691,2.31539,1993.8,1993.7,3.226]
[1742754187890,1.3121,1993.8,1993.7,5.56224]
[1742754188090,2.31539,1993.8,1993.7,5.56224]
[1742754188290,1.3121,1993.8,1993.7,5.56224]
[1742754188682,2.31539,1993.8,1993.7,5.56224]
[1742754189989,1.3121,1993.8,1993.7,5.56224]
[1742754192190,1.3121,1993.8,1993.7,2.33624]
[1742754192587,1.3121,1993.8,1993.7,5.56224]
[1742754198101,2.31539,1993.8,1993.7,3.226]
[1742754201202,3.00439,1993.8,1993.7,3.226]
[1742754204704,3.00439,1993.8,1993.7,5.60494]
[1742754205306,3.00439,1993.8,1993.7,2.37894]
[1742754205505,3.00439,1993.8,1993.7,4.6006]
[1742754223611,2.31539,1993.8,1993.7,4.6006]
[1742754225018,1.3121,1993.8,1993.7,5.60394]
[1742754225212,3.2078,1993.9,1993.8,1.00329]
[1742754225407,4.5966,1993.9,1993.8,3.06529]
[1742754226218,5.59983,1993.9,1993.8,3.06529]
[1742754227021,4.5966,1993.9,1993.8,3.06529]
[1742754227521,5.59983,1993.9,1993.8,3.06529]
[1742754227712,4.5966,1993.9,1993.8,3.06529]
[1742754230021,5.59983,1993.9,1993.8,3.06529]
[1742754230223,4.5966,1993.9,1993.8,3.06529]
[1742754234025,5.59983,1993.9,1993.8,2.062]
[1742754235317,5.59983,1993.9,1993.8,3.06529]
[1742754235611,5.59983,1993.9,1993.8,2.062]
[1742754236625,4.5966,1993.9,1993.8,3.06529]
[1742754237427,3.2078,1994.3,1994.2,1.00308]
[1742754237618,10.36612755,1994.3,1994.2,1.00308]
[1742754238125,10.36612755,1994.3,1994.2,2.37068]
[1742754240723,10.36612755,1994.3,1994.2,4.5916]
[1742754240724,14.57695755,1994.3,1994.2,4.5916]
[1742754240929,15.96575755,1994.3,1994.2,4.5916]
[1742754241121,17.32065755,1994.3,1994.2,4.5916]
[1742754241426,17.32065755,1994.3,1994.2,3.224]
[1742754241627,1.00313,1994.1,1994.0,4.5048]
[1742754241824,4.21093,1994.1,1994.0,4.5048]
[1742754242328,2.39188,1994.2,1994.0,5.50798]
[1742754242526,2.39188,1994.2,1994.1,1.2808]
[1742754242723,1.00308,1994.2,1994.1,1.2808]
[1742754246526,14.92882755,1994.3,1994.0,4.22715]
[1742754246830,1.00308,1994.2,1994.1,1.4067]
[1742754247532,1.00313,1994.1,1994.0,3.224]
[1742754247832,4.21093,1994.1,1994.0,4.5653]
[1742754248225,4.21093,1994.1,1994.0,1.3413]
[1742754248430,1.00323,1993.9,1993.8,1.3413]
[1742754248624,4.21103,1993.9,1993.8,1.3413]
[1742754250128,4.85133,1993.9,1993.8,1.3413]
[1742754250525,1.00329,1993.8,1993.7,3.223]
[1742754250725,1.00329,1993.8,1993.7,4.629]
[1742754257743,2.34729,1993.8,1993.7,4.629]
[1742754262349,2.34729,1993.8,1993.7,3.223]
[1742754262752,1.00334,1993.7,1993.6,1.9805]
[1742754262949,2.99434,1993.7,1993.6,1.9805]
[1742754263651,1.00339,1993.6,1993.5,3.9101305]
[1742754263852,2.33259,1993.6,1993.5,0.6871305]
[1742754264054,2.33259,1993.6,1993.5,3.9101305]
[1742754264349,2.33259,1993.6,1993.5,5.2123305]
[1742754264550,2.33259,1993.6,1993.5,6.2157705]
[1742754264752,1.3292,1993.6,1993.5,6.2157705]
[1742754265143,2.33259,1993.6,1993.5,5.2123305]
[1742754266051,1.3292,1993.6,1993.5,6.2157705]
[1742754266552,2.33259,1993.6,1993.5,5.2123305]
[1742754271653,1.3292,1993.6,1993.5,6.2157705]
[1742754272560,2.33259,1993.6,1993.5,1.9893305]
[1742754273854,2.33259,1993.6,1993.5,1.3097305]
[1742754274055,2.97689,1993.6,1993.5,0.0075305]
[1742754277557,4.4735,1993.6,1992.9,3.2078]
[1742754277754,1.00359,1993.2,1993.1,1.3825]
[1742754278252,2.99999,1993.2,1993.1,1.3825]
[1742754282653,1.00364,1993.1,1993.0,0.0075305]
[1742754282852,5.55184,1993.1,1993.0,0.0075305]
[1742754283258,1.00391,1992.6,1992.4,1.00399]
[1742754283457,1.00391,1992.6,1992.5,0.6972]
[1742754283761,3.2078,1992.7,1992.5,1.7011]
[1742754283952,3.2078,1992.7,1992.6,2.0443]
[1742754284152,5.51364,1992.7,1992.6,2.0443]
[1742754285150,5.51364,1992.7,1992.6,1.3735]
[1742754285354,1.00389,1992.6,1992.5,0.0075305]
[1742754285561,3.00519,1992.6,1992.5,0.0075305]
[1742754287160,1.302,1992.6,1992.5,0.0075305]
[1742754287659,2.30589,1992.6,1992.5,1.3024305]
[1742754288960,2.30589,1992.6,1992.5,0.0075305]
[1742754292851,1.302,1992.6,1992.5,1.0114705]
[1742754293055,3.2078,1992.7,1992.6,1.00389]
[1742754293357,4.6114,1992.7,1992.6,1.00389]
[1742754293560,4.6114,1992.7,1992.6,2.39239]
[1742754293955,3.2078,1992.7,1992.6,2.39239]
[1742754294156,4.6114,1992.7,1992.6,2.39239]
[1742754294556,5.61524,1992.7,1992.6,1.3885]
[1742754294957,4.6114,1992.7,1992.6,1.3885]
[1742754295157,5.61524,1992.7,1992.6,1.3885]
[1742754295357,4.6114,1992.7,1992.6,2.39239]
[1742754295969,3.2078,1992.7,1992.6,2.39239]
[1742754297457,4.21164,1992.7,1992.6,1.3885]
[1742754297767,5.56994,1992.7,1992.6,1.3885]
[1742754298369,5.56994,1992.7,1992.6,2.39239]
[1742754298570,4.5661,1992.7,1992.6,2.39239]
[1742754299564,5.56994,1992.7,1992.6,2.39239]
[1742754299766,4.5661,1992.7,1992.6,2.39239]
[1742754300471,5.56994,1992.7,1992.6,1.3885]
[1742754304270,4.5661,1992.7,1992.6,2.39239]
[1742754304475,3.2078,1993.2,1992.6,3.89822]
[1742754304667,1.3927,1993.0,1992.9,1.00371]
[1742754304978,3.9166,1993.2,1993.1,1.00364]
[1742754304979,4.6005,1993.2,1993.1,1.00364]
[1742754305278,1.3927,1993.2,1993.1,3.224]
[1742754305468,1.0110705,1993.3,1993.1,3.224]
[1742754305771,2.4037705,1993.3,1993.2,1.2943]
[1742754306262,1.4002305,1993.3,1993.2,1.2943]
[1742754306467,2.4037705,1993.3,1993.2,1.2943]
[1742754306669,1.4002305,1993.3,1993.2,1.2943]
[1742754307168,1.4002305,1993.3,1993.2,2.29789]
[1742754308175,1.0110705,1993.3,1993.2,1.2943]
[1742754308374,1.3272305,1993.3,1993.2,2.29789]
[1742754308576,2.3307705,1993.3,1993.2,1.2943]
[1742754309572,1.3272305,1993.3,1993.2,2.29789]
[1742754309774,0.0075305,1993.3,1993.2,2.29789]
[1742754314487,1.2992,1993.6,1993.5,1.00344]
[1742754314689,1.2992,1993.6,1993.5,4.22744]
[1742754315491,1.2992,1993.6,1993.5,3.224]
[1742754315783,1.2992,1993.6,1993.5,4.22744]
[1742754316576,0.0075305,1993.7,1993.6,1.00339]
[1742754316784,0.0075305,1993.7,1993.6,2.32189]
[1742754317089,0.0075305,1993.7,1993.4,4.958]
[1742754317283,4.21124,1993.5,1993.4,4.958]
[1742754318182,5.62584,1993.5,1993.4,4.958]
[1742754319781,5.62584,1993.5,1993.4,6.3216]
[1742754320290,5.62584,1993.5,1993.4,1.3636]
[1742754321593,5.62584,1993.5,1993.2,4.22655]
[1742754321793,2.41669,1993.4,1993.3,1.3226]
[1742754324907,3.05529,1993.4,1993.3,1.3226]
[1742754326400,1.00354,1993.3,1993.2,3.223]
[1742754326601,3.03614,1993.3,1993.2,3.223]
[1742754327613,6.24394,1993.3,1993.2,3.223]
[1742754327808,1.00359,1993.2,1993.1,1.337]
[1742754328012,2.38149,1993.2,1993.1,4.56]
[1742754328209,1.3779,1993.2,1993.1,4.56]
[1742754328809,1.3779,1993.2,1993.1,5.56364]
[1742754332223,3.2078,1993.5,1993.1,4.56]
[1742754332423,1.3187,1993.4,1993.3,1.00352]
[1742754332624,1.3187,1993.4,1993.3,4.92942]
[1742754333124,2.32219,1993.4,1993.3,5.2346]
[1742754334025,1.3187,1993.4,1993.3,6.23814]
[1742754335528,13.76884361,1993.7,1993.6,1.00339]
[1742754335716,13.76884361,1993.7,1993.6,4.22639]
[1742754336220,15.08654361,1993.7,1993.6,4.22639]
[1742754336526,15.08654361,1993.7,1993.6,6.32219]
[1742754339929,11.87874361,1993.7,1993.6,6.32219]
[1742754345633,13.57988361,1993.7,1993.6,5.3188]
[1742754346038,12.57654361,1993.7,1993.6,6.32219]
[1742754346333,13.57988361,1993.7,1993.6,4.624]
[1742754347231,13.57988361,1993.7,1993.6,1.402]
[1742754347434,13.57988361,1993.7,1993.6,4.624]
[1742754349731,13.57988361,1993.7,1993.6,1.402]
[1742754350037,1.00349,1993.4,1993.3,4.958]
[1742754350625,1.67799,1993.4,1993.3,4.958]
[1742754350935,0.6745,1993.4,1993.3,5.96154]
[1742754351128,3.2078,1993.5,1993.4,1.00349]
[1742754351330,4.5293,1993.5,1993.4,2.36629]
[1742754352130,5.53274,1993.5,1993.4,1.3628]
[1742754352434,5.53274,1993.5,1993.4,4.5848]